[Event "AUT-ch 2018"]
[Site "Vienna"]
[Date "2018.07.26"]
[Round "6"]
[White "Schroll, Gerhard"]
[Black "Steiner, Adam"]
[Result "1-0"]
[ECO "B10"]
[WhiteElo "2295"]
[BlackElo "2174"]
[Annotator "NA"]
[PlyCount "87"]
[EventDate "2018.07.22"]
[EventType "swiss"]
[EventCountry "AUT"]
[SourceTitle "playchess.com"]
[Source "ChessBase"]
[SourceQuality "1"]
[TimeControl "40/5400+30:1800+30"]

1. c4 {[%emt 0:00:00]} c6 {[%emt 0:00:19]} 2. e4 {[%emt 0:00:00]} d5 {[%emt 0:00:10]} 3. cxd5 {[%emt 0:00:21]} cxd5 {[%emt 0:00:08]} 4. exd5 {[%emt 0:00:08]} Nf6 {[%emt 0:00:07]} 5. Bb5+ {[%emt 0:00:26]} Nbd7 {[%emt 0:04:44]} 6. Nc3 {[%emt 0:00:37]} g6 {[%emt 0:01:04]} 7. d4 {[%emt 0:01:14]} Bg7 {[%emt 0:01:33]} 8. d6 {[%emt 0:00:12]} e6 {[%emt 0:07:53]} 9. Nf3 {[%emt 0:19:30]} O-O {[%emt 0:13:05]} 10. O-O {[%emt 0:01:36]} a6 {[%emt 0:08:33]} 11. Be2 {[%emt 0:00:43]} Nb6 {[%emt 0:04:52]} 12. Bf4 {[%emt 0:01:25]} Nh5 {[%emt 0:01:57]} 13. Be3 {[%emt 0:02:21]} Qxd6 {[%emt 0:02:22]} 14. Ne5 {[%emt 0:01:06]} Nf6 {[%emt 0:00:45]} 15. Bf4 {[%emt 0:12:41]} Nbd5 {[%emt 0:03:31]} 16. Nxd5 {[%emt 0:10:02]} Nxd5 {[%emt 0:00:48]} 17. Bg3 {[%emt 0:02:05]} Qb4 {[%emt 0:04:48]} 18. Rb1 {[%emt 0:00:43]} Rd8 {[%emt 0:06:05]} 19. a3 {[%emt 0:06:00]} Qb6 {[%emt 0:02:20]} 20. Qa4 {[%emt 0:04:57]} Qa7 {[%emt 0:10:11]} 21. Rfd1 {[%emt 0:03:00]} b5 {[%emt 0:05:42]} 22. Qc2 {[%emt 0:01:19]} Bd7 {[%emt 0:02:40]} 23. Qc5 {[%emt 0:04:13]} Rdc8 {[%emt 0:01:55]} 24. Qxa7 {[%emt 0:01:24]} Rxa7 {[%emt 0:00:01]} 25. Bf3 {[%emt 0:03:24]} Nb6 {[%emt 0:04:40]} 26. Rbc1 {[%emt 0:02:44]} f6 {[%emt 0:02:54]} 27. Nxd7 {[%emt 0:04:38]} Rxd7 {[%emt 0:00:48]} 28. Rxc8+ {[%emt 0:00:33]} Nxc8 {[%emt 0:00:01]} 29. Bc6 {[%emt 0:00:13]} Rd8 {[%emt 0:05:06]} 30. Bc7 {[%emt 0:03:57]} Rf8 {[%emt 0:00:03]} 31. Bb7 {[%emt 0:02:27]} Rf7 {[%emt 0:02:01]} 32. Rc1 {[%emt 0:00:27]} Bh6 {[%emt 0:01:43]} 33. Rc2 {[%emt 0:00:21]} Nb6 {[%emt 0:00:42]} 34. Bxa6 {[%emt 0:00:32]} Nd5 {[%emt 0:00:16]} 35. Bd6 {[%emt 0:01:43]} Rd7 {[%emt 0:01:03]} 36. Bc5 {[%emt 0:00:14]} Nc7 {[%emt 0:02:09]} 37. Bc8 {[%emt 0:01:08]} Rd8 {[%emt 0:00:26]} 38. Bb7 {[%emt 0:00:06]} e5 {[%emt 0:00:44]} 39. Bb6 {[%emt 0:00:17]} exd4 {[%emt 0:00:36]} 40. Rxc7 {[%emt 0:00:29]} d3 {[%emt 0:30:59]} 41. Rg7+ {[%emt 0:31:45]} Kxg7 {[%emt 0:00:00]} 42. Bxd8 {[%emt 0:00:00]} Bc1 {[%emt 0:00:00]} 43. b3 {[%emt 0:00:00]} Bxa3 {[%emt 0:00:00]} 44. Kf1 {[%emt 0:00:00]} 1-0

[Event "AUT-ch 2018"]
[Site "Vienna"]
[Date "2018.07.26"]
[Round "6"]
[White "Neumeier, Klaus"]
[Black "Zimmermann, Heinz"]
[Result "1-0"]
[ECO "E66"]
[WhiteElo "2284"]
[BlackElo "2162"]
[Annotator "NA"]
[PlyCount "59"]
[EventDate "2018.07.22"]
[EventType "swiss"]
[EventCountry "AUT"]
[SourceTitle "playchess.com"]
[Source "ChessBase"]
[SourceQuality "1"]
[TimeControl "40/5400+30:1800+30"]

1. Nf3 {[%emt 0:00:00]} Nf6 {[%emt 0:00:11]} 2. c4 {[%emt 0:00:00]} g6 {[%emt 0:00:18]} 3. g3 {[%emt 0:00:14]} Bg7 {[%emt 0:00:10]} 4. Bg2 {[%emt 0:00:07]} O-O {[%emt 0:00:33]} 5. d4 {[%emt 0:00:37]} d6 {[%emt 0:00:43]} 6. Nc3 {[%emt 0:00:22]} c5 {[%emt 0:00:30]} 7. O-O {[%emt 0:00:43]} Nc6 {[%emt 0:00:41]} 8. d5 {[%emt 0:00:19]} Na5 {[%emt 0:00:15]} 9. Nd2 {[%emt 0:00:28]} a6 {[%emt 0:01:10]} 10. Qc2 {[%emt 0:00:21]} Rb8 {[%emt 0:00:18]} 11. b3 {[%emt 0:00:15]} b5 {[%emt 0:00:18]} 12. Bb2 {[%emt 0:00:13]} bxc4 {[%emt 0:00:17]} 13. bxc4 {[%emt 0:00:07]} e5 {[%emt 0:05:21]} 14. Nd1 {[%emt 0:01:12]} Bh6 {[%emt 0:03:48]} 15. Bc3 {[%emt 0:03:12]} Bd7 {[%emt 0:00:24]} 16. e3 {[%emt 0:13:43]} Ne8 {[%emt 0:09:00]} 17. f4 {[%emt 0:03:58]} exf4 {[%emt 0:09:43]} 18. exf4 {[%emt 0:00:20]} Bg7 {[%emt 0:01:08]} 19. Ne3 {[%emt 0:01:36]} Bd4 {[%emt 0:07:57]} 20. Rae1 {[%emt 0:05:26]} Bf5 {[%emt 0:11:52]} 21. Qc1 {[%emt 0:03:13]} Bd3 {[%emt 0:01:48]} 22. Rf2 {[%emt 0:00:28]} Ng7 {[%emt 0:09:24]} 23. Qa3 {[%emt 0:14:07]} Bxc3 {[%emt 0:10:40]} 24. Qxc3 {[%emt 0:00:09]} Bf5 {[%emt 0:00:11]} 25. g4 {[%emt 0:01:55]} Bd7 {[%emt 0:00:12]} 26. f5 {[%emt 0:00:17]} f6 {[%emt 0:02:59]} 27. Ne4 {[%emt 0:08:54]} Ne8 {[%emt 0:01:07]} 28. fxg6 {[%emt 0:01:05]} hxg6 {[%emt 0:00:09]} 29. Ref1 {[%emt 0:00:45]} f5 {[%emt 0:03:40]} 30. gxf5 1-0

[Event "AUT-ch 2018"]
[Site "Vienna"]
[Date "2018.07.26"]
[Round "6"]
[White "Sadilek, Peter"]
[Black "Frank, Emanuel"]
[Result "1/2-1/2"]
[ECO "D37"]
[WhiteElo "2268"]
[BlackElo "2161"]
[Annotator "NA"]
[PlyCount "60"]
[EventDate "2018.07.22"]
[EventType "swiss"]
[EventCountry "AUT"]
[SourceTitle "playchess.com"]
[Source "ChessBase"]
[SourceQuality "1"]
[TimeControl "40/5400+30:1800+30"]

1. d4 {[%emt 0:00:45]} d5 {[%emt 0:00:09]} 2. c4 {[%emt 0:00:30]} e6 {[%emt 0:00:07]} 3. Nf3 {[%emt 0:00:56]} Nf6 {[%emt 0:00:06]} 4. Nc3 {[%emt 0:02:06]} Be7 {[%emt 0:00:32]} 5. g3 {[%emt 0:04:45]} O-O {[%emt 0:03:29]} 6. Bg2 {[%emt 0:00:03]} dxc4 {[%emt 0:00:04]} 7. Ne5 {[%emt 0:04:22]} c5 {[%emt 0:04:12]} 8. dxc5 {[%emt 0:02:19]} Qxd1+ {[%emt 0:01:21]} 9. Nxd1 {[%emt 0:00:03]} Bxc5 {[%emt 0:05:12]} 10. O-O {[%emt 0:01:40]} Nc6 {[%emt 0:04:54]} 11. Nxc4 {[%emt 0:13:56]} Bd7 {[%emt 0:03:38]} 12. Be3 {[%emt 0:09:22]} Bxe3 {[%emt 0:19:08]} 13. Ndxe3 {[%emt 0:00:49]} Rfd8 {[%emt 0:02:23]} 14. Rfd1 {[%emt 0:10:07]} Kf8 {[%emt 0:04:13]} 15. Nd6 {[%emt 0:11:52]} Rab8 {[%emt 0:05:28]} 16. a3 {[%emt 0:09:47]} Ke7 {[%emt 0:19:44]} 17. b4 {[%emt 0:11:23]} Ne8 {[%emt 0:02:30]} 18. Ne4 {[%emt 0:05:04]} Nf6 {[%emt 0:02:42]} 19. Nc5 {[%emt 0:00:32]} Be8 {[%emt 0:00:32]} 20. Rxd8 {[%emt 0:06:39]} Nxd8 {[%emt 0:02:12]} 21. a4 {[%emt 0:01:04]} Bc6 {[%emt 0:03:38]} 22. Bxc6 {[%emt 0:01:47]} Nxc6 {[%emt 0:00:39]} 23. b5 {[%emt 0:00:52]} Na5 {[%emt 0:04:01]} 24. Rd1 {[%emt 0:00:18]} Rc8 {[%emt 0:01:21]} 25. Nd3 {[%emt 0:00:08]} Ne4 {[%emt 0:01:27]} 26. Ne5 {[%emt 0:01:03]} f6 {[%emt 0:01:08]} 27. Nd3 {[%emt 0:00:25]} Nc3 {[%emt 0:01:27]} 28. Rd2 {[%emt 0:00:17]} Nb3 {[%emt 0:01:58]} 29. Rb2 {[%emt 0:00:01]} Nd4 {[%emt 0:00:25]} 30. Kf1 {[%emt 0:00:00]} e5 {[%emt 0:03:47]} 1/2-1/2

[Event "AUT-ch 2018"]
[Site "Vienna"]
[Date "2018.07.26"]
[Round "6"]
[White "Gelbenegger, Patrick"]
[Black "Miazhynski, Yuri"]
[Result "1-0"]
[ECO "B42"]
[WhiteElo "2260"]
[BlackElo "2147"]
[Annotator "ChessBase"]
[PlyCount "135"]
[EventDate "2018.07.22"]
[EventType "swiss"]
[EventCountry "AUT"]
[SourceTitle "playchess.com"]
[Source "ChessBase"]
[SourceQuality "1"]
[TimeControl "40/5400+30:1800+30"]

1. e4 {[%emt 0:00:00]} c5 {[%emt 0:00:14]} 2. Nf3 {[%emt 0:00:04]} e6 {[%emt 0:00:11]} 3. d4 {[%emt 0:00:14]} cxd4 {[%emt 0:00:06]} 4. Nxd4 {[%emt 0:00:04]} a6 {[%emt 0:00:19]} 5. Bd3 {[%emt 0:00:25]} g6 {[%emt 0:01:22]} 6. O-O {[%emt 0:05:23]} Bg7 {[%emt 0:00:36]} 7. Be3 {[%emt 0:02:18]} Ne7 {[%emt 0:02:40]} 8. c3 {[%emt 0:04:18]} d5 {[%emt 0:13:29]} 9. Nd2 {[%emt 0:11:32]} O-O {[%emt 0:04:35]} 10. Bg5 {[%emt 0:16:33]} f6 {[%emt 0:13:15]} 11. Bh4 {[%emt 0:02:07]} e5 {[%emt 0:04:04]} 12. N4b3 {[%emt 0:02:29]} Nbc6 {[%emt 0:28:32]} 13. exd5 {[%emt 0:09:42]} Nxd5 {[%emt 0:00:26]} 14. Ne4 {[%emt 0:03:24]} Nf4 {[%emt 0:08:24]} 15. Bc4+ {[%emt 0:04:23]} Be6 {[%emt 0:00:08]} 16. Bxe6+ {[%emt 0:01:36]} Nxe6 {[%emt 0:00:03]} 17. Nd6 {[%emt 0:02:14]} Qe7 {[%emt 0:04:15]} 18. Qd5 {[%emt 0:06:36]} Rad8 {[%emt 0:00:44]} 19. Rad1 {[%emt 0:00:20]} Kh8 {[%emt 0:05:41]} 20. Nc5 {[%emt 0:02:42]} Rxd6 {[%emt 0:01:12]} 21. Qxd6 {[%emt 0:02:18]} Qxd6 {[%emt 0:00:05]} 22. Rxd6 {[%emt 0:00:18]} Nxc5 {[%emt 0:00:02]} 23. f3 {[%emt 0:02:18]} Rd8 {[%emt 0:05:57]} 24. Rfd1 {[%emt 0:00:49]} Ne6 {[%emt 0:00:51]} 25. Bf2 {[%emt 0:02:48]} Rxd6 {[%emt 0:02:16]} 26. Rxd6 {[%emt 0:00:12]} Nf8 {[%emt 0:00:05]} 27. b4 {[%emt 0:01:58]} Kg8 {[%emt 0:00:34]} 28. a4 {[%emt 0:01:19]} Kf7 {[%emt 0:00:10]} 29. c4 {[%emt 0:03:16]} Ke8 {[%emt 0:02:42]} 30. b5 {[%emt 0:01:19]} axb5 {[%emt 0:00:05]} 31. axb5 {[%emt 0:00:22]} Na5 {[%emt 0:00:11]} 32. c5 {[%emt 0:00:39]} Nc4 {[%emt 0:01:11]} 33. Rd1 {[%emt 0:00:50]} Bh6 {[%emt 0:01:11]} 34. c6 {[%emt 0:01:31]} bxc6 {[%emt 0:00:36]} 35. bxc6 {[%emt 0:00:17]} Ne6 {[%emt 0:00:24]} 36. Rd7 {[%emt 0:01:56]} Bf8 {[%emt 0:00:57]} 37. Rxh7 {[%emt 0:01:07]} Be7 {[%emt 0:00:29]} 38. Rh8+ {[%emt 0:02:34]} Nf8 {[%emt 0:00:31]} 39. Rh4 {[%emt 0:01:33]} Nd6 {[%emt 0:00:29]} 40. Ra4 {[%emt 0:00:31]} Bd8 {[%emt 0:30:50]} 41. Ra8 {[%emt 0:05:33]} Ne6 {[%emt 0:00:00]} 42. Bb6 {[%emt 0:01:21]} Nb5 {[%emt 0:00:00]} 43. Rc8 {[%emt 0:03:02]} Nbc7 {[%emt 0:00:00]} 44. h4 {[%emt 0:01:01]} Ke7 {[%emt 0:00:00]} 45. g4 {[%emt 0:00:49]} Kd6 {[%emt 0:00:00]} 46. h5 {[%emt 0:00:55]} gxh5 {[%emt 0:00:00]} 47. gxh5 {[%emt 0:00:08]} Kxc6 {[%emt 0:00:00]} 48. h6 {[%emt 0:02:22]} Ng5 {[%emt 0:00:00]} 49. Be3 {[%emt 0:02:37]} Nf7 {[%emt 0:00:00]} 50. h7 {[%emt 0:02:09]} Kd7 {[%emt 0:00:00]} 51. Rb8 {[%emt 0:00:15]} f5 {[%emt 0:00:00]} 52. Bg5 {[%emt 0:05:04]} Ne6 {[%emt 0:00:00]} 53. Bxd8 {[%emt 0:06:26]} Nexd8 {[%emt 0:00:00]} 54. Kg2 {[%emt 0:00:38]} f4 {[%emt 0:02:25]} 55. Ra8 {[%emt 0:00:57]} Nh8 {[%emt 0:03:21]} 56. Kh3 {[%emt 0:01:05]} Ndf7 {[%emt 0:00:17]} 57. Kg4 {[%emt 0:00:20]} Ke6 {[%emt 0:00:34]} 58. Ra6+ {[%emt 0:00:37]} Ke7 {[%emt 0:02:10]} 59. Kf5 {[%emt 0:00:19]} e4 {[%emt 0:00:21]} 60. Ra7+ {[%emt 0:02:55]} Ke8 {[%emt 0:00:21]} 61. fxe4 {[%emt 0:02:17]} f3 {[%emt 0:00:06]} 62. Kf6 {[%emt 0:00:33]} f2 {[%emt 0:00:58]} 63. Ra1 {[%emt 0:00:38]} Nd6 {[%emt 0:00:54]} 64. e5 {[%emt 0:00:55]} Ne4+ {[%emt 0:00:30]} 65. Kg7 {[%emt 0:00:32]} Nf7 {[%emt 0:00:35]} 66. e6 {[%emt 0:00:17]} Neg5 {[%emt 0:00:29]} 67. exf7+ {[%emt 0:00:14]} Nxf7 {[%emt 0:00:06]} 68. h8=Q+ {[%emt 0:00:15]} 1-0

[Event "AUT-ch 2018"]
[Site "Vienna"]
[Date "2018.07.26"]
[Round "6"]
[White "Schmidlechner, Alexander"]
[Black "Atzl, Florian"]
[Result "0-1"]
[ECO "E15"]
[WhiteElo "2226"]
[BlackElo "2117"]
[Annotator "NA"]
[PlyCount "82"]
[EventDate "2018.07.22"]
[EventType "swiss"]
[EventCountry "AUT"]
[SourceTitle "playchess.com"]
[Source "ChessBase"]
[SourceQuality "1"]
[TimeControl "40/5400+30:1800+30"]

1. d4 {[%emt 0:00:00]} Nf6 {[%emt 0:00:13]} 2. c4 {[%emt 0:00:00]} e6 {[%emt 0:00:08]} 3. Nf3 {[%emt 0:00:27]} b6 {[%emt 0:00:07]} 4. g3 {[%emt 0:00:20]} Ba6 {[%emt 0:00:07]} 5. Qa4 {[%emt 0:00:46]} Be7 {[%emt 0:02:30]} 6. Bg2 {[%emt 0:00:18]} Bb7 {[%emt 0:00:02]} 7. O-O {[%emt 0:00:31]} O-O {[%emt 0:00:04]} 8. Nc3 {[%emt 0:03:52]} c5 {[%emt 0:02:54]} 9. dxc5 {[%emt 0:01:24]} bxc5 {[%emt 0:01:25]} 10. Rd1 {[%emt 0:06:50]} d6 {[%emt 0:05:31]} 11. Bf4 {[%emt 0:05:45]} a6 {[%emt 0:02:06]} 12. Rd2 {[%emt 0:20:45]} Qc7 {[%emt 0:04:12]} 13. Rad1 {[%emt 0:04:38]} Rd8 {[%emt 0:00:18]} 14. Qc2 {[%emt 0:04:16]} Nc6 {[%emt 0:03:35]} 15. Bg5 {[%emt 0:03:24]} h6 {[%emt 0:01:27]} 16. Bxf6 {[%emt 0:00:51]} Bxf6 {[%emt 0:00:02]} 17. Ne4 {[%emt 0:00:14]} Be7 {[%emt 0:01:15]} 18. Nc3 {[%emt 0:07:59]} Rab8 {[%emt 0:00:50]} 19. b3 {[%emt 0:02:16]} Ba8 {[%emt 0:04:05]} 20. e4 {[%emt 0:00:41]} Bf6 {[%emt 0:00:18]} 21. Ne2 {[%emt 0:02:32]} Nb4 {[%emt 0:05:45]} 22. Qb1 {[%emt 0:00:20]} a5 {[%emt 0:01:47]} 23. Nf4 {[%emt 0:02:45]} g6 {[%emt 0:04:17]} 24. h4 {[%emt 0:06:58]} a4 {[%emt 0:01:54]} 25. Nh2 {[%emt 0:02:03]} Nc6 {[%emt 0:03:11]} 26. Ng4 {[%emt 0:01:41]} Bg7 {[%emt 0:01:29]} 27. h5 {[%emt 0:03:40]} g5 {[%emt 0:00:40]} 28. Ne2 {[%emt 0:00:12]} axb3 {[%emt 0:00:31]} 29. axb3 {[%emt 0:00:07]} Na5 {[%emt 0:00:59]} 30. e5 {[%emt 0:02:12]} Bxg2 {[%emt 0:01:24]} 31. Kxg2 {[%emt 0:00:42]} Nxc4 {[%emt 0:04:17]} 32. exd6 {[%emt 0:00:36]} Qb7+ {[%emt 0:00:29]} 33. Kh2 {[%emt 0:00:18]} Nxd2 {[%emt 0:00:20]} 34. Rxd2 {[%emt 0:00:02]} Qf3 {[%emt 0:00:47]} 35. Ne3 {[%emt 0:00:37]} Qxf2+ {[%emt 0:01:14]} 36. Ng2 {[%emt 0:00:14]} Be5 {[%emt 0:02:24]} 37. Qd1 {[%emt 0:01:01]} Qf3 {[%emt 0:01:25]} 38. Rd3 {[%emt 0:01:05]} Qxh5+ {[%emt 0:00:10]} 39. Kg1 {[%emt 0:00:12]} Ra8 {[%emt 0:00:28]} 40. Qc2 {[%emt 0:00:41]} Ra1+ {[%emt 0:30:36]} 41. Kf2 {[%emt 0:30:05]} Qg6 {[%emt 0:03:03]} 0-1

[Event "AUT-ch 2018"]
[Site "Vienna"]
[Date "2018.07.26"]
[Round "6"]
[White "Sadilek, Maximilian"]
[Black "Thoma, Wilhelm Jun"]
[Result "1-0"]
[ECO "C00"]
[WhiteElo "2224"]
[BlackElo "2224"]
[Annotator "NA"]
[PlyCount "89"]
[EventDate "2018.07.22"]
[EventType "swiss"]
[EventCountry "AUT"]
[SourceTitle "playchess.com"]
[Source "ChessBase"]
[SourceQuality "1"]
[TimeControl "40/5400+30:1800+30"]

1. e4 {[%emt 0:00:00]} e6 {[%emt 0:00:24]} 2. Qe2 {[%emt 0:03:55]} c5 {[%emt 0:01:19]} 3. g3 {[%emt 0:01:54]} Nc6 {[%emt 0:00:09]} 4. Nf3 {[%emt 0:00:31]} Nge7 {[%emt 0:02:49]} 5. Bg2 {[%emt 0:00:21]} g6 {[%emt 0:00:16]} 6. d3 {[%emt 0:06:20]} Bg7 {[%emt 0:01:10]} 7. c3 {[%emt 0:00:13]} b6 {[%emt 0:05:34]} 8. Na3 {[%emt 0:04:36]} Ba6 {[%emt 0:03:35]} 9. h4 {[%emt 0:01:03]} h5 {[%emt 0:02:03]} 10. O-O {[%emt 0:03:32]} Rc8 {[%emt 0:04:23]} 11. Re1 {[%emt 0:04:31]} O-O {[%emt 0:00:57]} 12. Bd2 {[%emt 0:09:16]} d6 {[%emt 0:02:49]} 13. Rad1 {[%emt 0:00:53]} Ne5 {[%emt 0:05:35]} 14. Bg5 {[%emt 0:08:36]} Qd7 {[%emt 0:01:38]} 15. Nc4 {[%emt 0:08:54]} N7c6 {[%emt 0:01:19]} 16. Ncxe5 {[%emt 0:01:40]} Nxe5 {[%emt 0:01:17]} 17. Nxe5 {[%emt 0:10:43]} dxe5 {[%emt 0:00:15]} 18. Qf3 {[%emt 0:09:09]} Rc6 {[%emt 0:04:17]} 19. Bf6 {[%emt 0:02:36]} Rd6 {[%emt 0:03:44]} 20. Bf1 {[%emt 0:01:20]} Qb7 {[%emt 0:10:53]} 21. Be2 {[%emt 0:04:03]} Rc8 {[%emt 0:02:14]} 22. b3 Rc7 {[%emt 0:01:34]} 23. Kg2 {[%emt 0:10:09]} Rcd7 {[%emt 0:00:51]} 24. c4 {[%emt 0:01:12]} Qc8 {[%emt 0:01:41]} 25. Bxg7 {[%emt 0:00:34]} Kxg7 {[%emt 0:00:08]} 26. g4 {[%emt 0:00:21]} hxg4 {[%emt 0:04:36]} 27. Qg3 {[%emt 0:00:08]} f6 {[%emt 0:01:45]} 28. Qxg4 {[%emt 0:00:16]} Qe8 {[%emt 0:03:07]} 29. Kh2 {[%emt 0:02:42]} Qh8 {[%emt 0:04:50]} 30. Rg1 {[%emt 0:00:15]} Qh6 {[%emt 0:00:13]} 31. Rg3 {[%emt 0:02:05]} f5 {[%emt 0:04:50]} 32. Qh3 {[%emt 0:00:28]} Kf6 {[%emt 0:09:09]} 33. Rg5 {[%emt 0:01:57]} Rg7 {[%emt 0:05:33]} 34. Rdg1 {[%emt 0:00:26]} Rd8 {[%emt 0:00:24]} 35. Qg3 {[%emt 0:01:53]} Rh8 {[%emt 0:02:10]} 36. h5 {[%emt 0:00:18]} Rhg8 {[%emt 0:00:19]} 37. f4 {[%emt 0:00:56]} gxh5 {[%emt 0:05:26]} 38. fxe5+ {[%emt 0:00:17]} Kf7 {[%emt 0:00:14]} 39. Rxg7+ {[%emt 0:00:44]} Rxg7 {[%emt 0:01:06]} 40. Qxg7+ {[%emt 0:00:18]} Qxg7 {[%emt 0:30:13]} 41. Bxh5+ {[%emt 0:30:24]} Kf8 {[%emt 0:00:09]} 42. Rxg7 {[%emt 0:00:04]} Kxg7 {[%emt 0:00:51]} 43. exf5 {[%emt 0:00:20]} exf5 {[%emt 0:00:18]} 44. Kg3 {[%emt 0:00:26]} Kh6 {[%emt 0:01:14]} 45. e6 {[%emt 0:00:56]} 1-0

[Event "AUT-ch 2018"]
[Site "Vienna"]
[Date "2018.07.26"]
[Round "6"]
[White "Khalakhan, Jurij"]
[Black "Wagner, Leopold Franziskus"]
[Result "1-0"]
[ECO "A05"]
[WhiteElo "2215"]
[BlackElo "2108"]
[Annotator "NA"]
[PlyCount "125"]
[EventDate "2018.07.22"]
[EventType "swiss"]
[EventCountry "AUT"]
[SourceTitle "playchess.com"]
[Source "ChessBase"]
[SourceQuality "1"]
[TimeControl "40/5400+30:1800+30"]

1. Nf3 {[%emt 0:00:00]} Nf6 {[%emt 0:00:10]} 2. g3 {[%emt 0:00:00]} g6 {[%emt 0:00:13]} 3. Bg2 {[%emt 0:00:00]} Bg7 {[%emt 0:00:05]} 4. O-O {[%emt 0:00:00]} O-O {[%emt 0:00:03]} 5. d4 {[%emt 0:00:06]} e6 {[%emt 0:00:29]} 6. c4 {[%emt 0:05:15]} d5 {[%emt 0:00:32]} 7. Nc3 {[%emt 0:00:56]} b6 {[%emt 0:00:24]} 8. cxd5 {[%emt 0:02:23]} exd5 {[%emt 0:00:11]} 9. Bf4 {[%emt 0:02:20]} c6 {[%emt 0:01:02]} 10. Bxb8 {[%emt 0:02:51]} Rxb8 {[%emt 0:00:26]} 11. Qa4 {[%emt 0:00:01]} Qc7 {[%emt 0:01:21]} 12. Rac1 {[%emt 0:02:06]} b5 {[%emt 0:03:47]} 13. Qd1 {[%emt 0:11:01]} Qd6 {[%emt 0:01:09]} 14. e3 {[%emt 0:05:40]} Bf5 {[%emt 0:04:55]} 15. Ne2 {[%emt 0:09:04]} Ne4 {[%emt 0:03:53]} 16. Nf4 {[%emt 0:00:50]} Bg4 {[%emt 0:00:57]} 17. Qc2 {[%emt 0:04:19]} Rbc8 {[%emt 0:00:37]} 18. Nd3 {[%emt 0:02:37]} Bxf3 {[%emt 0:02:47]} 19. Bxf3 {[%emt 0:00:02]} f5 {[%emt 0:00:15]} 20. Bg2 {[%emt 0:00:59]} Rfe8 {[%emt 0:04:37]} 21. Qb3 {[%emt 0:03:51]} Nd2 {[%emt 0:00:18]} 22. Qc2 {[%emt 0:03:43]} Nxf1 {[%emt 0:00:10]} 23. Bxf1 {[%emt 0:00:07]} g5 {[%emt 0:01:19]} 24. Bh3 {[%emt 0:01:44]} Rf8 {[%emt 0:04:00]} 25. Qc5 {[%emt 0:05:26]} Qxc5 {[%emt 0:02:36]} 26. Rxc5 {[%emt 0:01:58]} a5 {[%emt 0:01:20]} 27. b4 {[%emt 0:02:22]} Rf6 {[%emt 0:12:29]} 28. bxa5 {[%emt 0:03:16]} Bf8 {[%emt 0:01:45]} 29. Rc2 {[%emt 0:00:06]} Bd6 {[%emt 0:01:35]} 30. Bg2 {[%emt 0:00:08]} Kg7 {[%emt 0:16:46]} 31. Bxd5 {[%emt 0:00:52]} Ra8 {[%emt 0:04:48]} 32. Rxc6 {[%emt 0:07:33]} Rxa5 {[%emt 0:00:33]} 33. Rb6 {[%emt 0:01:03]} h5 {[%emt 0:09:10]} 34. Rb7+ {[%emt 0:05:54]} Kh6 {[%emt 0:02:04]} 35. Bb3 {[%emt 0:02:12]} h4 {[%emt 0:01:56]} 36. Kg2 {[%emt 0:01:55]} hxg3 {[%emt 0:02:22]} 37. hxg3 {[%emt 0:00:06]} g4 {[%emt 0:03:01]} 38. Ne5 {[%emt 0:13:24]} Bxe5 {[%emt 0:00:55]} 39. dxe5 {[%emt 0:00:01]} Rf8 {[%emt 0:00:32]} 40. e6 {[%emt 0:00:36]} Kg6 {[%emt 0:30:46]} 41. e7 {[%emt 0:07:07]} Re8 {[%emt 0:00:00]} 42. Rb6+ {[%emt 0:02:41]} Kg7 {[%emt 0:00:00]} 43. e4 {[%emt 0:00:16]} fxe4 {[%emt 0:00:00]} 44. Re6 {[%emt 0:00:30]} Ra7 {[%emt 0:00:00]} 45. Rxe4 {[%emt 0:00:02]} Raxe7 {[%emt 0:00:00]} 46. Rxg4+ {[%emt 0:00:02]} Kh6 {[%emt 0:00:00]} 47. Rf4 {[%emt 0:02:19]} Re2 {[%emt 0:00:00]} 48. Kf3 {[%emt 0:00:48]} Kg5 {[%emt 0:00:00]} 49. Rg4+ {[%emt 0:00:46]} Kf5 {[%emt 0:00:00]} 50. Rb4 {[%emt 0:01:48]} R2e5 {[%emt 0:00:00]} 51. g4+ {[%emt 0:00:31]} Kg5 {[%emt 0:00:00]} 52. Kg3 {[%emt 0:00:02]} Kf6 {[%emt 0:00:00]} 53. Rf4+ {[%emt 0:00:24]} Kg7 {[%emt 0:00:00]} 54. Rf7+ {[%emt 0:00:24]} Kg6 {[%emt 0:00:00]} 55. f3 {[%emt 0:04:08]} Re3 {[%emt 0:00:00]} 56. Rb7 {[%emt 0:02:13]} R8e5 {[%emt 0:00:41]} 57. Kf4 {[%emt 0:01:43]} Re1 {[%emt 0:00:57]} 58. Bc2+ {[%emt 0:02:37]} Kf6 {[%emt 0:01:27]} 59. g5+ {[%emt 0:00:26]} Ke6 {[%emt 0:00:35]} 60. Bb3+ {[%emt 0:00:03]} Kd6 {[%emt 0:00:08]} 61. g6 {[%emt 0:01:12]} Re7 {[%emt 0:00:41]} 62. g7 {[%emt 0:01:00]} Rxb7 {[%emt 0:00:05]} 63. g8=Q {[%emt 0:00:17] Kd5 Ke4+} 1-0